fUST/lending_fUST_20250513
["ID","MTS","AMOUNT","RATE_DAILY","PERIOD"]
[360874061,1747093841382,-160.53250154,0.00019178,2]
[360874063,1747093841392,-400.0,0.00019178,2]
[360874065,1747093841402,-1626.04,0.00019178,2]
[360874067,1747093841412,-400.0,0.00019178,2]
[360874069,1747093841422,-280.439395,0.00019178,2]
[360874071,1747093841431,-280.439395,0.00019178,2]
[360874073,1747093841441,-630.21,0.00019178,2]
[360874075,1747093841450,-280.439395,0.00019178,2]
[360874077,1747093841460,-280.439395,0.00019178,2]
[360874079,1747093841469,-400.0,0.00019178,2]
[360874081,1747093841479,-400.0,0.00019178,2]
[360874083,1747093841488,-400.0,0.00019178,2]
[360874085,1747093841498,-479.4,0.00019178,2]
[360874087,1747093841507,-280.439395,0.00019178,2]
[360874090,1747093841518,-280.439395,0.00019178,2]
[360874092,1747093841527,-835.32,0.00019178,2]
[360874094,1747093841537,-400.0,0.00019178,2]
[360874096,1747093841546,-280.439395,0.00019178,2]
[360874098,1747093841556,-280.439395,0.00019178,2]
[360874117,1747093841565,-400.0,0.00019178,2]
[360874122,1747093841759,-151.0,0.00019178,2]
[360874124,1747093841769,-151.0,0.00019178,2]
[360874126,1747093841778,-151.0,0.00019178,2]
[360874128,1747093841787,-400.0,0.00019178,2]
[360874130,1747093841796,-151.0,0.00019178,2]
[360874132,1747093841806,-1756.35,0.00019178,2]
[360874134,1747093841816,-1756.35,0.00019178,2]
[360874136,1747093841825,-1756.35,0.00019178,2]
[360874138,1747093841836,-1756.35,0.00019178,2]
[360874140,1747093841847,-1756.35,0.00019178,2]
[360874142,1747093841856,-1756.35,0.00019178,2]
[360874144,1747093841865,-1756.35,0.00019178,2]
[360874146,1747093841874,-964.72,0.00019178,2]
[360874148,1747093841885,-1756.35,0.00019178,2]
[360874150,1747093841894,-151.0,0.00019178,2]
[360874152,1747093841904,-1756.35,0.00019178,2]
[360874154,1747093841914,-151.0,0.00019178,2]
[360874156,1747093841927,-1756.35,0.00019178,2]
[360874158,1747093841937,-1756.35,0.00019178,2]
[360874160,1747093841946,-151.0,0.00019178,2]
[360874162,1747093841956,-400.0,0.00019178,2]
[360874164,1747093841965,-151.0,0.00019178,2]
[360874166,1747093841974,-1756.35,0.00019178,2]
[360874168,1747093841983,-383.80468919,0.00019178,2]
[360874170,1747093841992,-1756.35,0.00019178,2]
[360874172,1747093842002,-1756.35,0.00019178,2]
[360874174,1747093842011,-1756.35,0.00019178,2]
[360874176,1747093842020,-1756.35,0.00019178,2]
[360874178,1747093842030,-1756.35,0.00019178,2]
[360874180,1747093842039,-1756.35,0.00019178,2]
[360874182,1747093842048,-1756.35,0.00019178,2]
[360874184,1747093842057,-1756.35,0.00019178,2]
[360874186,1747093842069,-677.92,0.00019178,2]
[360874188,1747093842078,-1756.35,0.00019178,2]
[360874190,1747093842087,-1756.35,0.00019178,2]
[360874192,1747093842096,-1756.35,0.00019178,2]
[360874194,1747093842105,-1756.55132112,0.00019178,2]
[360874196,1747093842114,-400.0,0.00019178,2]
[360874198,1747093842124,-400.0,0.00019178,2]
[360874200,1747093842135,-1433.69,0.00019178,2]
[360874202,1747093842144,-400.0,0.00019178,2]
[360874204,1747093842153,-400.0,0.00019178,2]
[360874206,1747093842162,-2549.29,0.00019178,2]
[360874208,1747093842171,-400.0,0.00019178,2]
[360874210,1747093842181,-400.0,0.00019178,2]
[360874212,1747093842190,-400.0,0.00019178,2]
[360874213,1747093842199,-444.69,0.00019178,2]
[360874214,1747093842208,-552.93,0.00019178,2]
[360874215,1747093842218,-400.0,0.00019178,2]
[360874216,1747093842227,-400.0,0.00019178,2]
[360874217,1747093842238,-400.0,0.00019178,2]
[360874218,1747093842247,-400.0,0.00019178,2]
[360874219,1747093842256,-400.0,0.00019178,2]
[360874220,1747093842265,-400.0,0.00019178,2]
[360874221,1747093842275,-403.86398764,0.00019178,2]
[360874222,1747093842284,-400.0,0.00019178,2]
[360874223,1747093842294,-641.32,0.00019178,2]
[360874224,1747093842303,-400.0,0.00019178,2]
[360874225,1747093842315,-400.0,0.00019178,2]
[360874226,1747093842324,-400.0,0.00019178,2]
[360874227,1747093842333,-400.0,0.00019178,2]
[360874228,1747093842342,-403.62443311,0.00019178,2]
[360874229,1747093842352,-318.29626,0.00019178,2]
[360874230,1747093842361,-318.29626,0.00019178,2]
[360874231,1747093842370,-318.29626,0.00019178,2]
[360874232,1747093842379,-400.0,0.00019178,2]
[360874233,1747093842389,-318.29626,0.00019178,2]
[360874234,1747093842398,-318.29626,0.00019178,2]
[360874235,1747093842407,-400.0,0.00019178,2]
[360874236,1747093842416,-400.0,0.00019178,2]
[360874237,1747093842425,-318.29626,0.00019178,2]
[360874238,1747093842435,-400.0,0.00019178,2]
[360874239,1747093842444,-318.29626,0.00019178,2]
[360874240,1747093842454,-318.29626,0.00019178,2]
[360874241,1747093842463,-197.87539,0.00019178,2]
[360874242,1747093842472,-197.87539,0.00019178,2]
[360874243,1747093842481,-197.87539,0.00019178,2]
[360874244,1747093842491,-400.0,0.00019178,2]
[360874245,1747093842500,-151.0,0.00019178,2]
[360874246,1747093842510,-197.87539,0.00019178,2]
[360874247,1747093842518,-400.0,0.00019178,2]
[360874248,1747093842527,-151.0,0.00019178,2]
[360874249,1747093842537,-151.0,0.00019178,2]
[360874250,1747093842546,-151.0,0.00019178,2]
[360874251,1747093842555,-197.87539,0.00019178,2]
[360874252,1747093842566,-197.87539,0.00019178,2]
[360874253,1747093842575,-234.9937805,0.00019178,2]
[360874254,1747093842584,-197.87539,0.00019178,2]
[360874255,1747093842593,-508.80677205,0.00019178,2]
[360874256,1747093842602,-197.87539,0.00019178,2]
[360874257,1747093842611,-400.0,0.00019178,2]
[360874258,1747093842620,-400.0,0.00019178,2]
[360874259,1747093842629,-400.0,0.00019178,2]
[360874260,1747093842639,-400.0,0.00019178,2]
[360874261,1747093842648,-400.0,0.00019178,2]
[360874262,1747093842657,-400.0,0.00019178,2]
[360874263,1747093842667,-400.0,0.00019178,2]
[360874264,1747093842676,-400.0,0.00019178,2]
[360874265,1747093842685,-485.8743149,0.00019178,2]
[360874266,1747093842694,-541.66,0.00019178,2]
[360874267,1747093842703,-692.7,0.00019178,2]
[360874268,1747093842712,-572.29,0.00019178,2]
[360874269,1747093842721,-400.0,0.00019178,2]
[360874270,1747093842731,-400.0,0.00019178,2]
[360874271,1747093842740,-400.0,0.00019178,2]
[360874272,1747093842750,-195.07333157,0.00019178,2]
[360874273,1747093842760,-400.0,0.00019178,2]
[360874274,1747093842769,-2315.9,0.00019178,2]
[360874275,1747093842779,-406.15,0.00019178,2]
[360874276,1747093842789,-151.0,0.00019178,2]
[360874277,1747093842798,-151.0,0.00019178,2]
[360874278,1747093842807,-155.183749,0.00019178,2]
[360874279,1747093842818,-1732.06,0.00019178,2]
[360874280,1747093842828,-400.0,0.00019178,2]
[360874282,1747093842838,-828.46,0.00019178,2]
[360874284,1747093842851,-1409.58,0.00019178,2]
[360874286,1747093842861,-501.95719588,0.00019178,2]
[360874288,1747093842871,-1241.23,0.00019178,2]
[360874290,1747093842881,-179.067677,0.00019178,2]
[360874292,1747093842891,-179.067677,0.00019178,2]
[360874294,1747093842901,-179.067677,0.00019178,2]
[360874296,1747093842910,-179.067677,0.00019178,2]
[360874297,1747093842920,-400.0,0.00019178,2]
[360874300,1747093842930,-534.84658073,0.00019178,2]
[360874301,1747093842939,-400.0,0.00019178,2]
[360874302,1747093842948,-179.067677,0.00019178,2]
[360874303,1747093842958,-667.93,0.00019178,2]
[360874304,1747093842967,-400.0,0.00019178,2]
[360874305,1747093842976,-179.067677,0.00019178,2]
[360874306,1747093842986,-1841.39,0.00019178,2]
[360874307,1747093842996,-179.067677,0.00019178,2]
[360874309,1747093843006,-179.067677,0.00019178,2]
[360874310,1747093843017,-1157.87,0.00019178,2]
[360874312,1747093843026,-675.0,0.00019178,2]
[360874313,1747093843035,-400.0,0.00019178,2]
[360874314,1747093843044,-400.0,0.00019178,2]
[360874315,1747093843053,-400.0,0.00019178,2]
[360874316,1747093843063,-2667.7,0.00019178,2]
[360874317,1747093843072,-400.0,0.00019178,2]
[360874318,1747093843081,-400.0,0.00019178,2]
[360874319,1747093843090,-447.6,0.00019178,2]
[360874320,1747093843100,-400.0,0.00019178,2]
[360874321,1747093843112,-400.0,0.00019178,2]
[360874322,1747093843123,-400.0,0.00019178,2]
[360874323,1747093843132,-400.0,0.00019178,2]
[360874324,1747093843141,-400.0,0.00019178,2]
[360874325,1747093843151,-400.0,0.00019178,2]
[360874326,1747093843160,-1391.7,0.00019178,2]
[360874328,1747093843170,-400.0,0.00019178,2]
[360874330,1747093843179,-588.61,0.00019178,2]
[360874332,1747093843188,-722.4,0.00019178,2]
[360874334,1747093843198,-400.0,0.00019178,2]
[360874336,1747093843207,-1387.32,0.00019178,2]
[360874338,1747093843216,-624.74,0.00019178,2]
[360874340,1747093843225,-492.47,0.00019178,2]
[360874342,1747093843235,-713.35,0.00019178,2]
[360874344,1747093843244,-474.49,0.00019178,2]
[360874346,1747093843253,-669.48,0.00019178,2]
[360874348,1747093843263,-503.22219157,0.00019178,2]
[360874350,1747093843272,-518.74,0.00019178,2]
[360874352,1747093843281,-400.0,0.00019178,2]
[360874354,1747093843291,-400.0,0.00019178,2]
[360874355,1747093843300,-400.0,0.00019178,2]
[360874358,1747093843309,-400.0,0.00019178,2]
[360874359,1747093843319,-865.4,0.00019178,2]
[360874361,1747093843329,-402.7737536,0.00019178,2]
[360874363,1747093843338,-400.0,0.00019178,2]
[360874366,1747093843348,-400.0,0.00019178,2]
[360874368,1747093843358,-743.88,0.00019178,2]
[360874370,1747093843367,-671.805123,0.00019178,2]
[360874373,1747093843377,-671.805123,0.00019178,2]
[360874376,1747093843386,-671.805123,0.00019178,2]
[360874379,1747093843396,-3222.67,0.00019178,2]
[360874381,1747093843405,-1000.0,0.00019178,2]
[360874383,1747093843414,-671.805123,0.00019178,2]
[360874385,1747093843423,-651.301094,0.00019178,2]
[360874387,1747093843432,-400.0,0.00019178,2]
[360874388,1747093843441,-651.301094,0.00019178,2]
[360874390,1747093843450,-651.301094,0.00019178,2]
[360874392,1747093843459,-651.301094,0.00019178,2]
[360874394,1747093843469,-671.805123,0.00019178,2]
[360874396,1747093843478,-671.805123,0.00019178,2]
[360874398,1747093843487,-400.0,0.00019178,2]
[360874400,1747093843496,-671.805123,0.00019178,2]
[360874402,1747093843506,-671.805123,0.00019178,2]
[360874404,1747093843515,-2739.56,0.00019178,2]
[360874406,1747093843524,-2739.56,0.00019178,2]
[360874408,1747093843533,-2739.56,0.00019178,2]
[360874410,1747093843543,-2739.56,0.00019178,2]
[360874412,1747093843552,-651.301094,0.00019178,2]
[360874414,1747093843562,-2739.56,0.00019178,2]
[360874416,1747093843571,-400.0,0.00019178,2]
[360874418,1747093843580,-2739.56,0.00019178,2]
[360874420,1747093843589,-651.301094,0.00019178,2]
[360874422,1747093843598,-1702.51558306,0.00019178,2]
[360874429,1747093843648,-1037.04441694,0.00019178,2]
[360874431,1747093843658,-651.301094,0.00019178,2]
[360874433,1747093843667,-2739.56,0.00019178,2]
[360874434,1747093843676,-151.0,0.00019178,2]
[360874437,1747093843685,-2739.56,0.00019178,2]
[360874439,1747093843695,-651.301094,0.00019178,2]
[360874441,1747093843704,-151.0,0.00019178,2]
[360874443,1747093843713,-2739.56,0.00019178,2]
[360874445,1747093843723,-2739.56,0.00019178,2]
[360874447,1747093843732,-2739.56,0.00019178,2]
[360874448,1747093843741,-2739.56,0.00019178,2]
[360874450,1747093843752,-2739.56,0.00019178,2]
[360874451,1747093843761,-2220.37,0.00019178,2]
[360874452,1747093843770,-2739.56,0.00019178,2]
[360874453,1747093843779,-2739.56,0.00019178,2]
[360874454,1747093843788,-2739.56,0.00019178,2]
[360874455,1747093843798,-400.0,0.00019178,2]
[360874456,1747093843807,-2739.56,0.00019178,2]
[360874457,1747093843817,-400.0,0.00019178,2]
[360874458,1747093843826,-2739.56,0.00019178,2]
[360874459,1747093843835,-2739.56,0.00019178,2]
[360874460,1747093843846,-615.70339506,0.00019178,2]
[360874461,1747093843859,-2123.85660494,0.00019178,2]
[360874462,1747093843868,-2739.56,0.00019178,2]
[360874463,1747093843877,-2739.56,0.00019178,2]
[360874464,1747093843886,-2739.69525053,0.00019178,2]
[360874465,1747093843896,-400.0,0.00019178,2]
[360874466,1747093843905,-460.96,0.00019178,2]
[360874467,1747093843914,-577.62,0.00019178,2]
[360874468,1747093843924,-400.0,0.00019178,2]
[360874470,1747093843934,-400.0,0.00019178,2]
[360874472,1747093843943,-400.0,0.00019178,2]
[360874474,1747093843953,-400.0,0.00019178,2]
[360874476,1747093843963,-487.93,0.00019178,2]
[360874478,1747093843973,-400.0,0.00019178,2]
[360874480,1747093843982,-400.0,0.00019178,2]
[360874482,1747093843991,-502.11,0.00019178,2]
[360874484,1747093844000,-1250.45,0.00019178,2]
[360874486,1747093844010,-400.0,0.00019178,2]
[360874488,1747093844020,-400.0,0.00019178,2]
[360874490,1747093844029,-707.79,0.00019178,2]
[360874492,1747093844038,-3214.39,0.00019178,2]
[360874494,1747093844048,-1148.47,0.00019178,2]
[360874496,1747093844057,-400.0,0.00019178,2]
[360874498,1747093844067,-542.04,0.00019178,2]
[360874500,1747093844076,-400.0,0.00019178,2]
[360874502,1747093844086,-2493.06814453,0.00019178,2]
[360874579,1747093844812,-1450.56185547,0.00019178,2]
[360874581,1747093844822,-1001.22,0.00019178,2]
[360874583,1747093844831,-1636.99,0.00019178,2]
[360874585,1747093844845,-364.36957714,0.00019178,2]
[360874587,1747093844855,-956.957189,0.00019178,2]
[360874589,1747093844864,-400.0,0.00019178,2]
[360874591,1747093844874,-466.12021596,0.00019178,2]
[360874593,1747093844885,-956.957189,0.00019178,2]
[360874595,1747093844894,-956.957189,0.00019178,2]
[360874597,1747093844903,-400.0,0.00019178,2]
[360874599,1747093844913,-400.0,0.00019178,2]
[360874601,1747093844922,-2626.58,0.00019178,2]
[360874603,1747093844932,-956.957189,0.00019178,2]
[360874605,1747093844941,-500.0,0.00019178,2]
[360874607,1747093844950,-956.957189,0.00019178,2]
[360874609,1747093844960,-400.0,0.00019178,2]
[360874611,1747093844971,-956.957189,0.00019178,2]
[360874613,1747093844987,-2477.45,0.00019178,2]
[360874615,1747093844996,-151.0,0.00019178,2]
[360874617,1747093845005,-400.0,0.00019178,2]
[360874619,1747093845015,-6.5431736,0.00019178,2]
[360874722,1747093845973,-147.9866114,0.00019178,2]
[360874724,1747093845983,-500.0,0.00019178,2]
[360874726,1747093845992,-154.529785,0.00019178,2]
[360874728,1747093846001,-154.529785,0.00019178,2]
[360874730,1747093846011,-400.0,0.00019178,2]
[360874732,1747093846020,-154.529785,0.00019178,2]
[360874734,1747093846029,-400.0,0.00019178,2]
[360874736,1747093846039,-400.0,0.00019178,2]
[360874739,1747093846049,-500.0,0.00019178,2]
[360874741,1747093846058,-400.0,0.00019178,2]
[360874742,1747093846067,-154.529785,0.00019178,2]
[360874745,1747093846076,-400.0,0.00019178,2]
[360874747,1747093846086,-154.529785,0.00019178,2]
[360874749,1747093846095,-154.529785,0.00019178,2]
[360874751,1747093846104,-154.529785,0.00019178,2]
[360874753,1747093846114,-2247.02,0.00019178,2]
[360874755,1747093846123,-400.0,0.00019178,2]
[360874757,1747093846132,-400.0,0.00019178,2]
[360874759,1747093846142,-1898.52,0.00019178,2]
[360874761,1747093846151,-151.0,0.00019178,2]
[360874763,1747093846160,-400.0,0.00019178,2]
[360874765,1747093846170,-400.0,0.00019178,2]
[360874767,1747093846180,-400.0,0.00019178,2]
[360874769,1747093846190,-500.0,0.00019178,2]
[360874771,1747093846199,-400.0,0.00019178,2]
[360874773,1747093846209,-400.0,0.00019178,2]
[360874775,1747093846219,-400.0,0.00019178,2]
[360874777,1747093846228,-500.0,0.00019178,2]
[360874779,1747093846237,-400.0,0.00019178,2]
[360874781,1747093846247,-588.5,0.00019178,2]
[360874783,1747093846256,-552.43,0.00019178,2]
[360874785,1747093846266,-400.0,0.00019178,2]
[360874787,1747093846275,-400.0,0.00019178,2]
[360874789,1747093846285,-400.0,0.00019178,2]
[360874791,1747093846295,-500.0,0.00019178,2]
[360874793,1747093846305,-2472.74,0.00019178,2]
[360874795,1747093846315,-400.0,0.00019178,2]
[360874797,1747093846324,-500.0,0.00019178,2]
[360874799,1747093846333,-500.0,0.00019178,2]
[360874801,1747093846344,-623.93,0.00019178,2]
[360874803,1747093846354,-400.0,0.00019178,2]
[360874805,1747093846363,-400.0,0.00019178,2]
[360874807,1747093846372,-500.0,0.00019178,2]
[360874809,1747093846381,-400.0,0.00019178,2]
[360874811,1747093846391,-400.0,0.00019178,2]
[360874813,1747093846400,-1058.64,0.00019178,2]
[360874815,1747093846409,-747.3,0.00019178,2]
[360874817,1747093846419,-400.0,0.00019178,2]
[360874819,1747093846428,-493.13,0.00019178,2]
[360874821,1747093846437,-1720.67,0.00019178,2]
[360874823,1747093846447,-470.44193257,0.00019178,2]
[360874825,1747093846456,-400.0,0.00019178,2]
[360874827,1747093846466,-576.25,0.00019178,2]
[360874830,1747093846475,-1411.71,0.00019178,2]
[360874833,1747093846485,-404.14,0.00019178,2]
[360874835,1747093846494,-447.98,0.00019178,2]
[360874837,1747093846505,-400.0,0.00019178,2]
[360874839,1747093846515,-400.0,0.00019178,2]
[360874841,1747093846525,-1114.88,0.00019178,2]
[360874843,1747093846534,-577.58,0.00019178,2]
[360874845,1747093846543,-151.360238,0.00019178,2]
[360874847,1747093846552,-400.0,0.00019178,2]
[360874849,1747093846562,-513.84060326,0.00019178,7]
[360874851,1747093846571,-681.44,0.00019178,2]
[360874853,1747093846580,-403.73,0.00019178,2]
[360874855,1747093846590,-400.0,0.00019178,2]
[360874857,1747093846599,-400.0,0.00019178,2]
[360874859,1747093846608,-820.98,0.00019178,2]
[360874861,1747093846618,-400.0,0.00019178,2]
[360874863,1747093846627,-400.0,0.00019178,2]
[360874865,1747093846636,-400.0,0.00019178,2]
[360874867,1747093846646,-151.0,0.00019178,2]
[360874869,1747093846655,-745.32,0.00019178,2]
[360874871,1747093846664,-151.0,0.00019178,2]
[360874873,1747093846674,-151.0,0.00019178,2]
[360874875,1747093846683,-492.77,0.00019178,2]
[360874877,1747093846692,-151.0,0.00019178,2]
[360874879,1747093846701,-448.75,0.00019178,2]
[360874881,1747093846711,-400.0,0.00019178,2]
[360874883,1747093846720,-400.0,0.00019178,2]
[360874885,1747093846729,-400.0,0.00019178,2]
[360874887,1747093846739,-400.0,0.00019178,2]
[360874889,1747093846748,-271.473484,0.00019178,2]
[360874891,1747093846757,-271.473484,0.00019178,2]
[360874893,1747093846767,-271.473484,0.00019178,2]
[360874895,1747093846776,-596.23,0.00019178,2]
[360874897,1747093846785,-271.473484,0.00019178,2]
[360874899,1747093846794,-400.0,0.00019178,2]
[360874901,1747093846803,-5215.46,0.00019178,2]
[360874903,1747093846813,-328.55905931,0.00019178,2]
[360874905,1747093846822,-705.28,0.00019178,2]
[360874907,1747093846831,-400.0,0.00019178,2]
[360874909,1747093846842,-271.473484,0.00019178,2]
[360874911,1747093846854,-400.0,0.00019178,2]
[360874914,1747093846863,-400.0,0.00019178,2]
[360874915,1747093846872,-819.84,0.00019178,2]
[360874918,1747093846883,-271.473484,0.00019178,2]
[360874919,1747093846892,-271.473484,0.00019178,2]
[360874921,1747093846901,-271.473484,0.00019178,2]
[360874923,1747093846911,-400.0,0.00019178,2]
[360874925,1747093846921,-400.0,0.00019178,2]
[360874928,1747093846931,-400.0,0.00019178,2]
[360874930,1747093846940,-400.0,0.00019178,2]
[360874932,1747093846949,-400.0,0.00019178,2]
[360874933,1747093846959,-400.0,0.00019178,2]
[360874935,1747093846969,-776.84,0.00019178,2]
[360874937,1747093846978,-553.43,0.00019178,2]
[360874940,1747093846989,-505.53439538,0.00019178,2]
[360874941,1747093846998,-400.0,0.00019178,2]
[360874943,1747093847007,-400.0,0.00019178,2]
[360874946,1747093847018,-400.0,0.00019178,2]
[360874948,1747093847027,-522.08,0.00019178,2]
[360874949,1747093847035,-400.0,0.00019178,2]
[360874952,1747093847046,-400.0,0.00019178,2]
[360874954,1747093847056,-1536.63,0.00019178,2]
[360874956,1747093847065,-400.0,0.00019178,2]
[360874958,1747093847074,-456.1,0.00019178,2]
[360874959,1747093847083,-1408.26,0.00019178,2]
[360874961,1747093847093,-463.25,0.00019178,2]
[360874963,1747093847102,-495.47,0.00019178,2]
[360874966,1747093847114,-400.0,0.00019178,2]
[360874968,1747093847123,-500.0,0.00019178,2]
[360874970,1747093847132,-500.0,0.00019178,2]
[360874972,1747093847142,-500.0,0.00019178,2]
[360874974,1747093847151,-500.0,0.00019178,2]
[360874976,1747093847160,-500.0,0.00019178,2]
[360874978,1747093847170,-500.0,0.00019178,2]
[360874980,1747093847180,-724.06,0.00019178,2]
[360874982,1747093847189,-335.3652886,0.00019178,2]
[360874984,1747093847199,-491.13,0.00019178,2]
[360874986,1747093847209,-2029.9,0.00019178,2]
[360874988,1747093847218,-500.0,0.00019178,2]
[360874990,1747093847228,-2029.9,0.00019178,2]
[360874992,1747093847238,-473.24,0.00019178,2]
[360874994,1747093847248,-2029.9,0.00019178,2]
[360874996,1747093847258,-400.13,0.00019178,2]
[360874998,1747093847267,-2029.9,0.00019178,2]
[360875000,1747093847277,-2029.9,0.00019178,2]
[360875002,1747093847287,-2029.9,0.00019178,2]
[360875004,1747093847297,-2029.9,0.00019178,2]
[360875006,1747093847306,-2029.9,0.00019178,2]
[360875008,1747093847317,-515.37904481,0.00019178,2]
[360875010,1747093847326,-261.019839,0.00019178,2]
[360875012,1747093847335,-728.31,0.00019178,2]
[360875014,1747093847345,-688.56,0.00019178,2]
[360875016,1747093847355,-400.0,0.00019178,2]
[360875018,1747093847364,-2029.9,0.00019178,2]
[360875020,1747093847374,-261.019839,0.00019178,2]
[360875022,1747093847383,-2029.9,0.00019178,2]
[360875023,1747093847393,-261.019839,0.00019178,2]
[360875024,1747093847402,-2029.9,0.00019178,2]
[360875025,1747093847412,-400.0,0.00019178,2]
[360875026,1747093847422,-2029.9,0.00019178,2]
[360875027,1747093847432,-2029.9,0.00019178,2]
[360875028,1747093847442,-261.019839,0.00019178,2]
[360875029,1747093847451,-500.0,0.00019178,2]
[360875030,1747093847460,-2029.9,0.00019178,2]
[360875031,1747093847469,-2029.9,0.00019178,2]
[360875032,1747093847479,-2029.9,0.00019178,2]
[360875033,1747093847488,-2029.9,0.00019178,2]
[360875034,1747093847497,-252.35812373,0.00019178,2]
[360875035,1747093847506,-2029.9,0.00019178,2]
[360875036,1747093847515,-2029.9,0.00019178,2]
[360875037,1747093847524,-2029.9,0.00019178,2]
[360875038,1747093847534,-400.0,0.00019178,2]
[360875040,1747093847543,-400.0,0.00019178,2]
[360875041,1747093847552,-2029.9,0.00019178,2]
[360875043,1747093847562,-2029.9,0.00019178,2]
[360875045,1747093847573,-500.0,0.00019178,2]
[360875047,1747093847583,-400.0,0.00019178,2]
[360875049,1747093847592,-2029.9,0.00019178,2]
[360875051,1747093847601,-400.0,0.00019178,2]
[360875053,1747093847611,-1161.39,0.00019178,2]
[360875055,1747093847620,-2030.01959121,0.00019178,2]
[360875057,1747093847629,-400.0,0.00019178,2]
[360875059,1747093847639,-261.019839,0.00019178,2]
[360875061,1747093847648,-500.0,0.00019178,2]
[360875063,1747093847657,-261.019839,0.00019178,2]
[360875065,1747093847666,-261.019839,0.00019178,2]
[360875067,1747093847675,-639.68722,0.00019178,2]
[360875069,1747093847685,-639.68722,0.00019178,2]
[360875071,1747093847694,-261.019839,0.00019178,2]
[360875073,1747093847703,-500.0,0.00019178,2]
[360875075,1747093847713,-639.68722,0.00019178,2]
[360875077,1747093847722,-400.0,0.00019178,2]
[360875079,1747093847731,-400.0,0.00019178,2]
[360875081,1747093847739,-639.68722,0.00019178,2]
[360875083,1747093847748,-400.0,0.00019178,2]
[360875085,1747093847757,-400.0,0.00019178,2]
[360875087,1747093847766,-500.0,0.00019178,2]
[360875089,1747093847778,-1234.12,0.00019178,2]
[360875092,1747093847787,-4962.53,0.00019178,2]
[360875094,1747093847796,-3829.84,0.00019178,2]
[360875095,1747093847806,-158.21451358,0.00019178,2]
[360875098,1747093847816,-639.68722,0.00019178,2]
[360875100,1747093847825,-639.68722,0.00019178,2]
[360875102,1747093847835,-639.68722,0.00019178,2]
[360875104,1747093847847,-639.68722,0.00019178,2]
[360875106,1747093847857,-400.0,0.00019178,2]
[360875108,1747093847866,-2262.53,0.00019178,2]
[360875110,1747093847876,-169.41994482,0.00019178,2]
[360875112,1747093847887,-400.0,0.00019178,2]
[360875114,1747093847896,-269.82680035,0.00019178,2]
[360875116,1747093847905,-151.0,0.00019178,2]
[360875118,1747093847915,-1872.73,0.00019178,2]
[360875120,1747093847925,-400.0,0.00019178,2]
[360875122,1747093847935,-1836.28,0.00019178,2]
[360875124,1747093847945,-400.0,0.00019178,2]
[360875126,1747093847955,-671.22,0.00019178,2]
[360875128,1747093847964,-416.25,0.00019178,2]
[360875130,1747093847974,-1291.8,0.00019178,2]
[360875132,1747093847983,-652.73,0.00019178,2]
[360875134,1747093847993,-400.0,0.00019178,2]
[360875136,1747093848002,-400.0,0.00019178,2]
[360875138,1747093848011,-400.0,0.00019178,2]
[360875140,1747093848020,-400.0,0.00019178,2]
[360875142,1747093848030,-400.0,0.00019178,2]